bitfinex/quotes_BTCUSD_20260127
["timestamp","ask_amount","ask_price","bid_price","bid_amount"]
[1769513906377,0.0949329,88016.0,87999.0,0.03363614]
[1769513907991,0.0949329,88016.0,87999.0,0.02312352]
[1769513908477,0.11764141,88016.0,87999.0,0.02312352]
[1769513910556,0.0949329,88016.0,87999.0,0.02312352]
[1769513910771,0.02270851,88015.0,87999.0,0.02312352]
[1769513910985,0.0949329,88014.0,87999.0,0.02312352]
[1769513911971,0.0949329,88014.0,87995.0,0.0001894]
[1769513911972,0.2715311,88010.0,87995.0,0.0001894]
[1769513912138,0.0949329,88006.0,87995.0,0.0001894]
[1769513936665,0.10803359,88006.0,87995.0,0.0001894]
[1769513942397,0.10803359,88006.0,87999.0,0.01136376]
[1769513942398,0.01310069,88006.0,87999.0,0.01136376]
[1769513942591,0.01310069,88006.0,87998.0,0.06818315]
[1769513942795,0.01310069,88006.0,87999.0,0.01136376]
[1769513943002,0.01310069,88006.0,88000.0,0.01136363]
[1769513943649,0.01310069,88006.0,87999.0,0.06818219]
[1769513944472,0.01310069,88006.0,88000.0,0.01126363]
[1769513944931,0.01310069,88006.0,87999.0,0.01136376]
[1769513945111,0.01310069,88006.0,88000.0,0.01136363]
[1769513946200,0.01310069,88006.0,87999.0,0.01136376]
[1769513946410,0.01310069,88006.0,87998.0,9.35e-05]
[1769513946560,0.01310069,88006.0,87998.0,0.01145739]
[1769513947866,0.01310069,88006.0,87998.0,0.0682766]
[1769513948706,0.01310069,88006.0,87998.0,0.01145739]
[1769513948910,0.01310069,88006.0,87998.0,0.06827654]
[1769513949600,0.01310069,88006.0,87999.0,0.01136376]
[1769513950410,0.01310069,88006.0,87998.0,9.35e-05]
[1769513950615,0.01310069,88006.0,87998.0,0.01145739]
[1769513951257,0.01310069,88006.0,87999.0,0.01136376]
[1769513951384,0.01310069,88006.0,87998.0,0.06827681]
[1769513951586,0.01310069,88006.0,87998.0,0.01145739]
[1769513953906,0.01310069,88006.0,87998.0,9.35e-05]
[1769513954352,0.01310069,88006.0,87998.0,0.05691283]
[1769513954559,0.01310069,88006.0,87998.0,0.06827679]
[1769513954757,0.01310069,88006.0,87998.0,0.01145739]
[1769513954962,0.01310069,88006.0,87998.0,9.35e-05]
[1769513956659,0.01310069,88006.0,87999.0,0.01136376]
[1769513957744,0.01310069,88006.0,87999.0,0.06818233]
[1769513957952,0.01310069,88006.0,87999.0,0.01136376]
[1769513958399,0.01310069,88006.0,87998.0,0.01145739]
[1769513958572,0.01310069,88006.0,87998.0,0.06827644]
[1769513958979,0.01310069,88006.0,87998.0,9.35e-05]
[1769513959561,0.01310069,88006.0,87998.0,0.01217537]
[1769513961149,0.01310069,88006.0,87998.0,9.35e-05]
[1769513967531,0.09100882,88025.0,87998.0,9.35e-05]
[1769513967737,0.11377342,88024.0,88000.0,0.2717052]
[1769513967938,0.11377342,88023.0,88000.0,0.2717052]
[1769513968141,0.02424503,88018.0,88000.0,0.32852335]
[1769513968393,0.09092216,88016.0,88000.0,0.2717052]
[1769513968782,0.09092216,88016.0,88001.0,0.0113635]
[1769513969784,0.02424503,88026.0,88003.0,0.03586112]
[1769513969999,0.09092216,88023.0,88003.0,0.03586112]
[1769513970196,0.09092216,88021.0,88004.0,0.01136311]
[1769513970805,0.09092216,88021.0,88003.0,0.02449788]
[1769513970986,0.09092216,88021.0,88004.0,0.01136311]
[1769513971188,0.09092216,88020.0,88003.0,0.09267717]
[1769513971842,0.09092216,88020.0,88004.0,0.01136311]
[1769513972158,0.09092216,88020.0,88003.0,0.03586112]
[1769513972553,0.11516719,88020.0,88004.0,0.01136311]
[1769513972761,0.09092216,88019.0,88003.0,0.02449788]
[1769513973808,0.11516719,88019.0,88003.0,0.02449788]
[1769513974012,0.09092216,88018.0,88003.0,0.02449788]
[1769513974250,0.09092216,88016.0,88001.0,0.0113635]
[1769513974426,0.11516719,88016.0,88000.0,0.06818159]
[1769513974647,0.11516719,88016.0,88001.0,0.0113635]
[1769513975008,0.11516719,88016.0,88000.0,0.33988679]
[1769513975211,0.11516719,88016.0,88001.0,0.0113635]
[1769513975420,0.11516719,88016.0,88001.0,0.06818099]
[1769513975869,0.11516719,88016.0,88001.0,0.0113635]
[1769513976075,0.11516719,88016.0,88000.0,0.28298845]
[1769513976230,0.11516719,88016.0,88000.0,0.33980651]
[1769513976639,0.11516719,88016.0,88001.0,0.0113635]
[1769513976962,0.11516719,88016.0,88000.0,0.33980651]
[1769513977184,0.11516719,88016.0,88000.0,0.27162482]
[1769513977897,0.11516719,88016.0,88000.0,0.28298845]
[1769513978090,0.11516719,88016.0,88000.0,0.27162482]
[1769513978792,0.11516719,88016.0,87998.0,0.0569126]
[1769513978995,0.11516719,88016.0,87998.0,0.01145739]
[1769513979152,0.11516719,88016.0,87999.0,0.01136376]
[1769513979365,0.11516719,88016.0,87998.0,9.35e-05]
[1769513979570,0.27162482,88020.0,87998.0,9.35e-05]
[1769513980171,0.27162482,88020.0,87989.0,0.01151175]
[1769513980172,0.02424503,88006.0,87989.0,0.0001467]
[1769513980540,0.02424503,87997.0,87989.0,0.0001467]
[1769513980746,0.27162482,88001.0,87989.0,0.0001467]
[1769513980747,0.11516719,87995.0,87989.0,0.0001467]
[1769513983205,0.11516719,87995.0,87989.0,0.01151175]
[1769513983531,0.11516719,87995.0,87989.0,0.01205159]
[1769513984018,0.02424503,87995.0,87989.0,0.01205159]
[1769513984597,0.02424503,87999.0,87989.0,0.02341664]
[1769513984805,0.02424503,87999.0,87989.0,0.01205159]
[1769513984982,0.02424503,87999.0,87989.0,0.02341664]
[1769513985186,0.02424503,87999.0,87989.0,0.01205159]
[1769513985562,0.02424503,87999.0,87989.0,0.02341664]
[1769513985741,0.02424503,87999.0,87989.0,0.08024187]
[1769513985943,0.02424503,87999.0,87989.0,0.02341664]
[1769513986755,0.02424503,87999.0,87989.0,0.01205159]
[1769513986976,0.09092216,88000.0,87989.0,0.02341664]
[1769513987180,0.02424503,88016.0,87990.0,0.10415782]
[1769513987426,0.09092216,88013.0,87992.0,0.06818749]
[1769513987631,0.02424503,88008.0,87992.0,0.01136466]
[1769513987834,0.09092216,88005.0,87993.0,0.01136454]
[1769513988011,0.02424503,88004.0,87992.0,0.01136466]
[1769513988215,0.02424503,88004.0,87989.0,0.27177152]
[1769513988615,0.09092216,88004.0,87989.0,0.32859656]
[1769513988817,0.09092216,88003.0,87989.0,0.27177152]
[1769513989153,0.27162482,88010.0,87989.0,0.27177152]
[1769513989154,0.02424503,88001.0,87989.0,0.0001467]
[1769513989368,0.27162482,88010.0,87989.0,0.0001467]
[1769513989544,0.09092216,88009.0,87989.0,0.10430465]
[1769513989750,0.02424503,88006.0,87989.0,0.0001467]
[1769513989905,0.27162482,88010.0,87989.0,0.0001467]
[1769513989906,0.09092216,88004.0,87989.0,0.0001467]
[1769513990111,0.02424503,88002.0,87989.0,0.01151175]
[1769513990310,0.02424503,88002.0,87989.0,0.0001467]
[1769513990740,0.09092216,88001.0,87989.0,0.0001467]
[1769513990943,0.11516719,88001.0,87989.0,0.0001467]
[1769513991148,0.11516719,88001.0,87990.0,0.27162482]
[1769513999882,0.02424503,88001.0,87990.0,0.27162482]
[1769514000346,0.02424503,88001.0,87990.0,0.28298974]
[1769514000572,0.02424503,88001.0,87990.0,0.29267859]
[1769514000770,0.02424503,88001.0,87991.0,0.01136479]
[1769514001050,0.09575567,88006.0,87991.0,0.01136479]
[1769514001259,0.11672,88018.0,87990.0,0.28298974]
[1769514001433,0.09575567,88015.0,87990.0,0.28298974]
[1769514001628,0.1136248,88014.0,87990.0,0.27162482]
[1769514001985,0.09575567,88015.0,87990.0,0.27162482]
[1769514002165,0.11362811,88014.0,87990.0,0.28298974]
[1769514002343,0.11672,88018.0,87990.0,0.33981432]
[1769514002557,0.02468379,88015.0,87990.0,0.28298974]
[1769514002735,0.11672,88018.0,87990.0,0.28298974]
[1769514002736,0.09575567,88012.0,87990.0,0.28298974]
[1769514002946,0.02468379,88009.0,87990.0,0.28298974]
[1769514003159,0.02468379,88007.0,87990.0,0.28298974]
[1769514003499,0.09575567,88004.0,87990.0,0.28298974]
[1769514003667,0.09575567,88004.0,87990.0,0.33981425]
[1769514003879,0.09575567,88004.0,87990.0,0.28298974]
[1769514004321,0.09575567,88004.0,87990.0,0.3284493]
[1769514004529,0.09575567,88004.0,87990.0,0.33981401]
[1769514004814,0.09575567,88004.0,87991.0,0.01136479]
[1769514004963,0.0001467,88020.0,87998.0,0.02381878]
[1769514005164,0.02468379,88017.0,87998.0,0.02381878]
[1769514005383,0.12043946,88015.0,87998.0,0.02381878]
[1769514005635,0.27177152,88020.0,87998.0,0.02381878]
[1769514005636,0.09575567,88014.0,87998.0,0.02381878]
[1769514005856,0.12043946,88014.0,87998.0,0.02381878]
[1769514006059,0.09575567,88013.0,87998.0,0.02381878]
[1769514007164,0.12058616,88020.0,88000.0,0.27162482]
[1769514007366,0.11368322,88019.0,88001.0,0.0113635]
[1769514007549,0.12058616,88020.0,88002.0,0.12666044]
[1769514007748,0.12058616,88020.0,88003.0,0.01136324]
[1769514008362,0.12058616,88020.0,88004.0,0.01136311]
[1769514009531,0.12058616,88020.0,88003.0,0.06817915]
[1769514009739,0.12058616,88020.0,88003.0,0.06817931]
[1769514009948,0.12058616,88020.0,88004.0,0.01136311]
[1769514010161,0.12058616,88020.0,88003.0,0.01136324]
[1769514010563,0.12058616,88020.0,88003.0,0.06817947]
[1769514010965,0.12058616,88020.0,88004.0,0.01136311]
[1769514011179,0.12058616,88020.0,88003.0,0.06817942]
[1769514011349,0.12058616,88020.0,88004.0,0.01136311]
[1769514012100,0.12058616,88020.0,88003.0,0.06817942]
[1769514012337,0.02483049,88020.0,88002.0,0.11529707]
[1769514012538,0.09575567,88018.0,88002.0,0.03614534]
[1769514012721,0.0001467,88020.0,88002.0,0.03614534]
[1769514012722,0.12043946,88017.0,88002.0,0.01222656]
[1769514013328,0.02468379,88017.0,88002.0,0.01222656]
[1769514013531,0.09575567,88016.0,88000.0,0.27162482]
[1769514013760,0.09575567,88016.0,88002.0,0.01136337]
[1769514013964,0.09575567,88016.0,88003.0,0.01221874]
[1769514014170,0.09575567,88016.0,88001.0,0.01221874]
[1769514015403,0.12043946,88016.0,88000.0,0.27162482]
[1769514016081,0.12043946,88016.0,88000.0,0.28298845]
[1769514016291,0.12043946,88016.0,88001.0,0.01221913]
[1769514016488,0.12043946,88016.0,88002.0,0.01136337]
[1769514016686,0.12043946,88016.0,88003.0,0.02372844]
[1769514016889,0.12043946,88016.0,88003.0,0.0123652]
[1769514017067,0.12043946,88016.0,88003.0,0.02372844]
[1769514017468,0.12043946,88016.0,88003.0,0.0123652]
[1769514017868,0.12043946,88016.0,88004.0,0.01243621]
[1769514018074,0.12043946,88016.0,88005.0,0.01243606]
[1769514018413,0.12043946,88016.0,88006.0,0.01243591]
[1769514018615,0.12043946,88016.0,88001.0,0.0113635]
[1769514018616,0.12043946,88016.0,88002.0,0.01243591]
[1769514018999,0.12043946,88016.0,88000.0,0.27162482]
[1769514019198,0.0001467,88020.0,88000.0,0.27162482]
[1769514019404,0.0001467,88020.0,88005.0,0.09137829]
[1769514019626,0.0001467,88020.0,88006.0,0.01236499]
[1769514020038,0.02483049,88020.0,88006.0,0.01236499]
[1769514020470,0.02483049,88020.0,88010.0,0.27162482]
[1769514020656,0.02483049,88020.0,88006.0,0.01136286]
[1769514020855,0.02483049,88020.0,88010.0,0.27162482]
[1769514021154,0.02483049,88020.0,88006.0,0.01136286]
[1769514021400,0.02483049,88020.0,88007.0,0.01236563]
[1769514021601,0.02483049,88020.0,88008.0,0.05681287]
[1769514021806,0.02483049,88020.0,88009.0,0.01236534]
[1769514022011,0.0001467,88020.0,88011.0,0.0955977]
[1769514023727,0.0001467,88020.0,88010.0,0.27162482]
[1769514024292,0.0001467,88020.0,88006.0,0.0955977]
[1769514026742,0.0001467,88020.0,88006.0,0.10696056]
[1769514026958,0.0001467,88020.0,88006.0,0.0955977]
[1769514028463,0.03137334,88020.0,88004.0,0.02359462]
[1769514029575,0.03137334,88020.0,88004.0,0.08041009]
[1769514029793,0.03137334,88020.0,88004.0,0.02359462]
[1769514030197,0.03137334,88020.0,88005.0,0.01136299]
[1769514030614,0.03137334,88020.0,88005.0,0.03241676]
[1769514030827,0.03137334,88020.0,88005.0,0.01136299]
[1769514031596,0.03137334,88020.0,88004.0,0.08041021]
[1769514031814,0.03137334,88020.0,88004.0,0.02359462]
[1769514032430,0.03137334,88020.0,88004.0,0.08041018]
[1769514032579,0.03137334,88020.0,88005.0,0.01136299]
[1769514032992,0.03137334,88020.0,88004.0,0.08041018]
[1769514033418,0.03137334,88020.0,88005.0,0.06817782]
[1769514033784,0.03137334,88020.0,88006.0,0.01136286]
[1769514034223,0.03137334,88020.0,88006.0,0.06817712]
[1769514034464,0.03137334,88020.0,88006.0,0.01136286]
[1769514035727,0.03137334,88020.0,88006.0,0.03241663]
[1769514035925,0.03137334,88020.0,88006.0,0.01136286]
[1769514036376,0.03137334,88020.0,88007.0,0.01223109]
[1769514036758,0.03137334,88020.0,88005.0,0.06817755]
[1769514037003,0.03137334,88020.0,88007.0,0.01136273]
[1769514037427,0.03137334,88020.0,88006.0,0.06817712]
[1769514037620,0.03137334,88020.0,88007.0,0.01136273]
[1769514038064,0.03137334,88020.0,88004.0,0.0235942]
[1769514038476,0.03137334,88020.0,88004.0,0.01223109]
[1769514038979,0.03137334,88020.0,88003.0,0.02359433]
[1769514039186,0.03137334,88020.0,88003.0,0.08041051]
[1769514039664,0.03137334,88020.0,88003.0,0.02359433]
[1769514039875,0.03137334,88020.0,88004.0,0.01136311]
[1769514040090,0.03137334,88020.0,88003.0,0.08041041]
[1769514040308,0.03137334,88020.0,88004.0,0.01136311]
[1769514040554,0.03137334,88020.0,88004.0,0.06817854]
[1769514040784,0.03137334,88020.0,88005.0,0.01136299]
[1769514041506,0.03137334,88020.0,88004.0,0.01136311]
[1769514042158,0.03137334,88020.0,88007.0,0.01136273]
[1769514042355,0.03137334,88020.0,88008.0,0.01223039]
[1769514042917,0.03137334,88020.0,88008.0,0.02359299]
[1769514043367,0.03137334,88020.0,88008.0,0.01223039]
[1769514043723,0.03137334,88020.0,88007.0,0.01136273]
[1769514043946,0.03137334,88020.0,88009.0,0.01136247]
[1769514044203,0.03137334,88020.0,88010.0,0.01309749]
[1769514044399,0.03137334,88020.0,88007.0,0.01136273]
[1769514044782,0.03137334,88020.0,88008.0,0.0113626]
[1769514044976,0.03137334,88020.0,88008.0,0.06817531]
[1769514045273,0.03137334,88020.0,88009.0,0.01136247]
[1769514046612,0.03137334,88020.0,88008.0,0.0113626]
[1769514047195,0.03137334,88020.0,88008.0,0.0681756]
[1769514047607,0.03137334,88020.0,88008.0,0.0113626]
[1769514047807,0.03137334,88020.0,88008.0,0.06817552]
[1769514050004,0.03137334,88020.0,88009.0,0.06817457]
[1769514050426,0.03137334,88020.0,88009.0,0.06817474]
[1769514050621,0.03137334,88020.0,88010.0,0.02344875]
[1769514052188,0.03137334,88020.0,88011.0,0.01136221]
[1769514052392,0.03137334,88020.0,88012.0,0.01208613]
[1769514053179,0.03137334,88020.0,88009.0,0.01136247]
[1769514054293,0.03137334,88020.0,88007.0,0.01136273]
[1769514055069,0.03137334,88020.0,88007.0,0.06817636]
[1769514055274,0.03137334,88020.0,88006.0,0.06817692]
[1769514055275,0.03137334,88020.0,88006.0,0.01136286]
[1769514055482,0.03137334,88020.0,88005.0,0.06817684]
[1769514056082,0.03137334,88020.0,88006.0,0.01136286]
[1769514056938,0.03137334,88020.0,88010.0,0.01136234]
[1769514057180,0.03137334,88020.0,88011.0,0.01184038]
[1769514057664,0.03137334,88020.0,88010.0,0.01184039]
[1769514057857,0.03137334,88020.0,88010.0,0.08001417]
[1769514059083,0.03137334,88020.0,88011.0,0.01136221]
[1769514059289,0.03137334,88020.0,88012.0,0.01185657]
[1769514059492,0.03137334,88020.0,88011.0,0.02398426]
[1769514059788,0.03137334,88020.0,88011.0,0.02365812]
[1769514060013,0.03137334,88020.0,88011.0,0.01229591]
[1769514060218,0.03169959,88020.0,88011.0,0.02365812]
[1769514060421,0.03169959,88020.0,88011.0,0.01229591]
[1769514060622,0.00047295,88020.0,88011.0,0.02365812]
[1769514060801,0.00047295,88020.0,88009.0,0.06817461]
[1769514061095,0.00047295,88020.0,88010.0,0.01136234]
[1769514061446,0.00047295,88020.0,88009.0,0.06817461]
[1769514061649,0.00047295,88020.0,88010.0,0.01136234]
[1769514062149,0.00047295,88020.0,88011.0,0.01136221]
[1769514063352,0.00047295,88020.0,88011.0,0.06817287]
[1769514063555,0.0001467,88020.0,88013.0,0.01136195]
[1769514063754,0.00047295,88020.0,88014.0,0.01187129]
[1769514064000,0.0001467,88020.0,88014.0,0.01154518]
[1769514064403,0.0001467,88020.0,88015.0,0.01103558]
[1769514064601,0.0001467,88020.0,88014.0,0.022907]
[1769514064602,0.0001467,88020.0,88016.0,0.0112188]
[1769514064907,0.0001467,88020.0,88014.0,0.02258004]
[1769514065525,0.0001467,88020.0,88015.0,0.01136169]
[1769514065721,0.0001467,88020.0,88016.0,0.01121821]
[1769514065944,0.0001467,88020.0,88014.0,0.02258005]
[1769514066382,0.0001467,88020.0,88014.0,0.01121823]
[1769514067670,0.0001467,88020.0,88014.0,0.02258005]
[1769514068303,0.0001467,88020.0,88014.0,0.01121823]
[1769514068520,0.0001467,88020.0,88015.0,0.01198882]
[1769514068728,0.0001467,88020.0,88016.0,0.01198868]
[1769514068942,0.0001467,88020.0,88014.0,0.0119887]
[1769514069152,0.0001467,88020.0,88013.0,0.02335092]
[1769514070375,0.0001467,88020.0,88013.0,0.01198897]
[1769514071612,0.0001467,88020.0,88013.0,0.02335092]
[1769514071823,0.0001467,88020.0,88013.0,0.01198897]
[1769514072023,0.0001467,88020.0,88013.0,0.02335092]
[1769514072543,0.0001467,88020.0,88013.0,0.01198897]
[1769514072757,0.0001467,88020.0,88013.0,0.02335092]
[1769514072960,0.0001467,88020.0,88013.0,0.01198897]
[1769514073165,0.0001467,88020.0,88013.0,0.02335092]
[1769514073365,0.0001467,88020.0,88013.0,0.01198897]
[1769514075447,0.09550448,88039.0,88027.0,0.01136015]
[1769514075673,0.09550448,88039.0,88027.0,0.3397373]
[1769514075866,0.09550448,88039.0,88027.0,0.01136015]
[1769514076072,0.09550448,88039.0,88028.0,0.01136002]
[1769514076333,0.09550448,88039.0,88027.0,0.01136015]
[1769514076535,0.09550448,88039.0,88026.0,0.0681611]
[1769514076742,0.09550448,88039.0,88027.0,0.06816088]
[1769514076914,0.02478457,88045.0,88027.0,0.06816088]
[1769514077098,0.09565118,88037.0,88028.0,0.06816012]
[1769514077297,0.09565118,88037.0,88029.0,0.01135989]
[1769514077524,0.09565118,88037.0,88030.0,0.01135976]
[1769514077721,0.09565118,88037.0,88031.0,0.01135963]
[1769514077722,0.0001467,88037.0,88031.0,0.01135963]
[1769514077924,0.0001467,88037.0,88032.0,0.0113595]
[1769514078885,0.0001467,88037.0,88031.0,0.01135963]
[1769514079384,0.0001467,88037.0,88032.0,0.0113595]
[1769514079588,0.0001467,88037.0,88034.0,0.01135924]
[1769514079767,0.0001467,88037.0,88033.0,0.01135937]
[1769514079968,0.0001467,88037.0,88033.0,0.06815624]
[1769514081184,0.0001467,88037.0,88034.0,0.01135924]
[1769514084277,0.0001467,88037.0,88033.0,0.06815624]
[1769514084490,0.0001467,88037.0,88034.0,0.01135924]
[1769514084823,0.0001467,88037.0,88033.0,0.06815624]
[1769514085242,0.0001467,88037.0,88034.0,0.01135924]
[1769514085649,0.0001467,88037.0,88031.0,0.01135963]
[1769514085877,0.0001467,88037.0,88033.0,0.01135937]
[1769514086861,0.0001467,88037.0,88032.0,0.0681569]
[1769514087281,0.0001467,88037.0,88032.0,0.0113595]
[1769514087499,0.0001467,88037.0,88032.0,0.06815693]
[1769514087723,0.0001467,88037.0,88032.0,0.0113595]
[1769514087931,0.0001467,88037.0,88033.0,0.01135937]
[1769514088162,0.0001467,88037.0,88032.0,0.0113595]
[1769514089249,0.0001467,88037.0,88033.0,0.01135937]
[1769514089485,0.0001467,88037.0,88032.0,0.06815699]
[1769514089683,0.0001467,88037.0,88034.0,0.02490909]
[1769514089804,0.0001467,88037.0,88035.0,0.02490909]
[1769514094526,0.0001467,88037.0,88032.0,0.0226627]
[1769514094662,0.0001467,88037.0,88033.0,0.02490909]
[1769514094864,0.0001467,88037.0,88034.0,0.03676892]
[1769514102929,0.0001467,88037.0,88034.0,0.02321907]
[1769514103132,0.0001467,88037.0,88035.0,0.02490909]
[1769514103340,0.0001467,88037.0,88036.0,0.0371551]
[1769514104569,0.0001467,88037.0,88036.0,0.09395004]
[1769514105151,0.0001467,88037.0,88036.0,0.0371551]
[1769514105393,0.0001467,88055.0,88036.0,0.0371551]
[1769514105394,0.0001467,88055.0,88037.0,0.02490909]
[1769514105567,0.0001467,88055.0,88036.0,0.01224601]
[1769514105568,0.0001467,88055.0,88045.0,0.01135782]
[1769514106005,0.0001467,88055.0,88046.0,0.01135769]
[1769514106179,0.0001467,88055.0,88047.0,0.02490909]
[1769514107167,0.0001467,88057.0,88047.0,0.02490909]
[1769514107337,0.0001467,88057.0,88047.0,0.03626666]
[1769514107742,0.0001467,88057.0,88048.0,0.01135744]
[1769514107943,0.0001467,88057.0,88049.0,0.01135731]
[1769514108128,0.09786394,88061.0,88049.0,0.01135731]
[1769514108360,0.09786394,88061.0,88048.0,0.06814432]
[1769514108361,0.09786394,88061.0,88048.0,0.01135744]
[1769514108559,0.09786394,88061.0,88049.0,0.01135731]
[1769514108762,0.09786394,88061.0,88048.0,0.06814462]
[1769514109059,0.09836925,88066.0,88050.0,0.01135718]
[1769514109429,0.09836925,88066.0,88051.0,0.03616614]
[1769514110335,0.09836925,88066.0,88051.0,0.02480909]
[1769514110541,0.09836925,88066.0,88051.0,0.03616614]
[1769514110960,0.09836925,88066.0,88051.0,0.02480909]
[1769514111135,0.09836925,88066.0,88053.0,0.02490909]
[1769514111462,0.000163,88067.0,88053.0,0.02490909]
[1769514111660,0.000163,88067.0,88054.0,0.01135666]
[1769514111962,0.000163,88067.0,88056.0,0.0113564]
[1769514112180,0.000163,88067.0,88055.0,0.03626562]
[1769514112389,0.000163,88067.0,88030.0,0.2]
[1769514112609,0.09836925,88064.0,88046.0,0.01135769]
[1769514112813,0.09836925,88059.0,88045.0,0.03626691]
[1769514113012,0.09836925,88059.0,88045.0,0.02490909]
[1769514113447,0.09836925,88059.0,88041.0,0.05679117]
[1769514113448,0.2714312,88055.0,88037.0,0.01135886]
[1769514113622,0.2714312,88055.0,88010.0,0.1]
[1769514113623,0.02384749,88049.0,88036.0,0.01135898]
[1769514113798,0.09836925,88048.0,88038.0,0.01135873]
[1769514114209,0.09344572,88057.0,88040.0,0.06815057]
[1769514114430,0.1164079,88055.0,88041.0,0.01135834]
[1769514114584,0.2714312,88060.0,88041.0,0.05679134]
[1769514114803,0.09344572,88063.0,88043.0,0.01135808]
[1769514115070,0.02296218,88059.0,88043.0,0.01135808]
[1769514115288,0.1164079,88058.0,88043.0,0.01135808]
[1769514116257,0.1164079,88058.0,88044.0,0.01135795]
[1769514116464,0.1164079,88058.0,88043.0,0.06814834]
[1769514117051,0.1164079,88058.0,88043.0,0.01135808]
[1769514117467,0.07457664,88057.0,88041.0,0.0117351]
[1769514117679,0.09344572,88056.0,88041.0,0.0117351]
[1769514117883,0.01283055,88055.0,88041.0,0.0117351]
[1769514118088,0.09344572,88056.0,88043.0,0.01135808]
[1769514118302,0.09344572,88056.0,88043.0,0.01173483]
[1769514118504,0.09344572,88056.0,88044.0,0.01135795]
[1769514119269,0.01283055,88055.0,88042.0,0.01135821]
[1769514119490,0.09344572,88056.0,88045.0,0.01135782]
[1769514119764,0.09344572,88056.0,88045.0,0.01173455]
[1769514120142,0.09344572,88056.0,88045.0,0.00037673]
[1769514120341,0.09344572,88056.0,88044.0,0.01135795]
[1769514120682,0.09344572,88056.0,88046.0,0.01135769]
[1769514120901,0.09344572,88056.0,88047.0,0.01135757]
[1769514121130,0.09344572,88056.0,88046.0,0.01135769]
[1769514121550,0.09344572,88056.0,88047.0,0.01135757]
[1769514122140,0.09344572,88056.0,88047.0,0.06814533]
[1769514122339,0.09344572,88056.0,88047.0,0.01135757]
[1769514122778,0.09344572,88056.0,88047.0,0.06814541]
[1769514123002,0.02296218,88057.0,88041.0,0.12482343]
[1769514123243,0.02296218,88057.0,88046.0,0.01135769]
[1769514123472,0.02296218,88057.0,88048.0,0.01135744]
[1769514123656,0.09344572,88062.0,88048.0,0.01135744]
[1769514124093,0.1164079,88062.0,88049.0,0.01135731]
[1769514124370,0.1164079,88062.0,88048.0,0.01135744]
[1769514124550,0.1164079,88062.0,88048.0,0.06814456]
[1769514124760,0.1164079,88062.0,88050.0,0.0681428]
[1769514124961,0.1164079,88062.0,88051.0,0.01135705]
[1769514125370,0.1164079,88062.0,88053.0,0.01135679]
[1769514125547,0.000163,88067.0,88053.0,0.01135679]
[1769514125755,0.01299355,88067.0,88051.0,0.06814197]
[1769514125963,0.03595573,88067.0,88052.0,0.01135692]
[1769514126199,0.1165709,88067.0,88052.0,0.06814146]
[1769514126408,0.1165709,88067.0,88051.0,0.01135705]
[1769514126726,0.02296218,88066.0,88052.0,0.01135692]
[1769514127261,0.02296218,88066.0,88052.0,0.0681409]
[1769514127460,0.02296218,88066.0,88054.0,0.01135666]
[1769514127717,0.000163,88067.0,88055.0,0.01135653]
[1769514128278,0.000163,88067.0,88057.0,0.01135628]
[1769514128561,0.000163,88067.0,88056.0,0.0113564]
[1769514128740,0.000163,88067.0,88056.0,0.09995948]
[1769514128913,0.000163,88067.0,88056.0,0.11131588]
[1769514129718,0.000163,88067.0,88056.0,0.16809783]
[1769514129920,0.000163,88067.0,88059.0,0.01135602]
[1769514130340,0.000163,88067.0,88063.0,0.0113555]
[1769514130726,0.000163,88067.0,88059.0,0.01135602]
[1769514131159,0.000163,88067.0,88062.0,0.01135563]
[1769514131326,0.000163,88067.0,88061.0,0.01135576]
[1769514131508,0.000163,88067.0,88062.0,0.01135563]
[1769514132128,0.000163,88067.0,88063.0,0.0113555]
[1769514132345,0.000163,88067.0,88062.0,0.01135563]
[1769514133548,0.000163,88067.0,88061.0,0.06813416]
[1769514133746,0.000163,88067.0,88062.0,0.01135563]
[1769514134333,0.000163,88067.0,88063.0,0.0113555]
[1769514134991,0.000163,88067.0,88064.0,0.01135537]
[1769514135194,8.15e-05,88067.0,88065.0,0.09995948]
[1769514135396,4.075e-05,88067.0,88065.0,0.09995948]
[1769514135723,4.075e-05,88067.0,88064.0,0.01135537]
[1769514135936,4.075e-05,88067.0,88064.0,0.06813224]
[1769514136135,4.075e-05,88067.0,88065.0,0.05677623]
[1769514136369,4.075e-05,88067.0,88064.0,0.06813224]
[1769514136582,4.075e-05,88067.0,88064.0,0.01135537]
[1769514136781,0.000163,88077.0,88070.0,0.0113546]
[1769514137149,0.000163,88077.0,88069.0,0.01135473]
[1769514137574,0.000163,88077.0,88070.0,0.0113546]
[1769514137786,0.000163,88077.0,88067.0,0.05677491]
[1769514137991,0.000163,88077.0,88069.0,0.01135473]
[1769514138162,0.000163,88077.0,88070.0,0.0113546]
[1769514138365,0.000163,88077.0,88069.0,0.01135473]
[1769514138957,0.000163,88077.0,88067.0,0.06812985]
[1769514139160,0.000163,88077.0,88068.0,0.05677419]
[1769514139356,0.000163,88077.0,88069.0,0.01135473]
[1769514139541,0.000163,88077.0,88069.0,0.06812814]
[1769514139736,0.000163,88077.0,88068.0,0.06812883]
[1769514139737,0.000163,88077.0,88068.0,0.01135486]
[1769514140774,0.000163,88077.0,88061.0,0.09995948]
[1769514140958,0.000163,88077.0,88055.0,0.01135653]
[1769514140959,0.2714312,88071.0,88055.0,0.01135653]
[1769514141133,0.09344572,88068.0,88056.0,0.0113564]
[1769514141350,0.02356344,88065.0,88056.0,0.0113564]
[1769514141572,0.12244864,88065.0,88056.0,0.0113564]
[1769514142006,0.12244864,88065.0,88057.0,0.01135628]
[1769514142318,0.12244864,88065.0,88058.0,0.05678045]
[1769514142525,0.02356344,88070.0,88059.0,0.01135602]
[1769514142926,0.02356344,88070.0,88058.0,0.06813685]
[1769514143132,0.02356344,88070.0,88059.0,0.01135602]
[1769514143917,0.02356344,88070.0,88058.0,0.06813685]
[1769514143918,0.02356344,88070.0,88058.0,0.01135615]
[1769514144097,0.02356344,88070.0,88059.0,0.01135602]
[1769514144258,0.11558922,88070.0,88059.0,0.06813606]
[1769514144458,0.11558922,88070.0,88059.0,0.01135602]
[1769514145430,0.11558922,88070.0,88059.0,0.06813609]
[1769514145796,0.11558922,88070.0,88060.0,0.01135589]
[1769514146366,0.11558922,88070.0,88061.0,0.01135576]
[1769514148180,0.11558922,88070.0,88059.0,0.06813563]
[1769514148392,0.11558922,88070.0,88061.0,0.01135576]
[1769514148564,0.11558922,88070.0,88060.0,0.2714312]
[1769514148765,0.11558922,88070.0,88060.0,0.28278709]
[1769514149274,0.11518922,88070.0,88060.0,0.28278709]
[1769514149660,0.11518922,88070.0,88061.0,0.01135576]
[1769514149864,0.11518922,88070.0,88062.0,0.01135563]
[1769514150061,0.09202578,88070.0,88062.0,0.01135563]
[1769514150267,0.09202578,88070.0,88063.0,0.0113555]
[1769514150447,0.09202578,88070.0,88062.0,0.01125563]
[1769514150644,0.09202578,88070.0,88062.0,0.06803352]
[1769514150901,0.09202578,88070.0,88063.0,0.0113555]
[1769514151252,0.09202578,88070.0,88063.0,0.06813264]
[1769514151463,0.09202578,88070.0,88065.0,0.01135524]
[1769514151662,0.1287571,88075.0,88065.0,0.01135524]
[1769514151861,0.09202578,88074.0,88064.0,0.0681319]